bitfinex/quotes_BTCUSD_20250316
["timestamp","ask_amount","ask_price","bid_price","bid_amount"]
[1742168155175,0.0001693,82664.0,82663.0,0.239528]
[1742168155331,0.0001693,82664.0,82663.0,0.242528]
[1742168155556,0.0011693,82664.0,82663.0,0.242528]
[1742168160251,0.0011693,82664.0,82663.0,0.31963763]
[1742168160447,0.0011693,82664.0,82663.0,0.318428]
[1742168163371,0.193486,82694.0,82663.0,0.318428]
[1742168163372,0.012089,82714.0,82698.0,0.012092]
[1742168163576,0.012091,82702.0,82690.0,0.193493]
[1742168163778,0.012091,82702.0,82689.0,0.012093]
[1742168163779,0.012092,82695.0,82688.0,0.13844]
[1742168163984,0.012092,82695.0,82687.0,0.0128]
[1742168163985,0.012093,82688.0,82687.0,0.0128]
[1742168164198,0.012094,82682.0,82678.0,0.13848]
[1742168164421,0.012094,82685.0,82679.0,0.193519]
[1742168164621,0.205605,82683.0,82678.0,0.13848]
[1742168164822,0.205611,82680.0,82679.0,0.0484197]
[1742168165023,0.012095,82677.0,82673.0,0.0452]
[1742168165354,0.193526,82677.0,82673.0,0.0452]
[1742168165485,0.012095,82675.0,82673.0,0.0452]
[1742168165678,0.012095,82674.0,82673.0,0.0452]
[1742168165969,0.205625,82675.0,82673.0,0.071844]
[1742168166141,0.193528,82676.0,82673.0,0.071844]
[1742168166288,0.193528,82676.0,82673.0,0.073844]
[1742168166484,0.012095,82677.0,82673.0,0.073844]
[1742168166485,0.012095,82677.0,82673.0,0.071844]
[1742168166717,0.205621,82677.0,82673.0,0.071844]
[1742168166966,0.012095,82674.0,82673.0,0.071844]
[1742168167529,0.205634,82671.0,82670.0,0.22124]
[1742168167746,0.205634,82671.0,82670.0,0.13844]
[1742168168605,0.012097,82664.0,82663.0,0.0828]
[1742168168789,0.012097,82661.0,82654.0,0.0452]
[1742168168960,0.205662,82660.0,82655.0,0.04207701]
[1742168170147,0.205662,82660.0,82655.0,0.04807701]
[1742168170639,0.012097,82660.0,82656.0,0.193573]
[1742168170836,0.012097,82659.0,82655.0,0.03597901]
[1742168171044,0.193565,82660.0,82656.0,0.193573]
[1742168171240,0.193565,82660.0,82657.0,0.0726115]
[1742168171580,0.012095,82672.0,82661.0,0.012097]
[1742168171745,0.0001693,82671.0,82661.0,0.012097]
[1742168171980,0.205649,82665.0,82658.0,0.193567]
[1742168172182,0.205653,82664.0,82658.0,0.193568]
[1742168172372,0.205653,82664.0,82659.0,0.08180325]
[1742168172793,0.012097,82664.0,82659.0,0.08180325]
[1742168173168,0.193556,82663.0,82659.0,0.08180325]
[1742168173583,0.012097,82664.0,82659.0,0.27536725]
[1742168173786,0.205649,82665.0,82660.0,0.205658]
[1742168173967,0.205649,82665.0,82661.0,0.05949308]
[1742168174779,0.193557,82663.0,82661.0,0.05949308]
[1742168175018,0.205658,82662.0,82659.0,0.08680325]
[1742168175147,0.012097,82664.0,82659.0,0.08680325]
[1742168175363,0.012097,82664.0,82659.0,0.08180325]
[1742168175567,0.205649,82665.0,82661.0,0.004]
[1742168175792,0.012096,82666.0,82661.0,0.012097]
[1742168175995,0.193552,82665.0,82661.0,0.012097]
[1742168176216,0.012096,82666.0,82661.0,0.012097]
[1742168176217,0.012096,82666.0,82661.0,0.209656]
[1742168176745,0.193548,82667.0,82661.0,0.209656]
[1742168176935,0.193551,82666.0,82662.0,0.06738058]
[1742168178909,0.205644,82667.0,82662.0,0.27303458]
[1742168179092,0.205644,82667.0,82662.0,0.28103458]
[1742168179799,0.205644,82667.0,82662.0,0.27303458]
[1742168180135,0.205644,82667.0,82662.0,0.28003458]
[1742168180365,0.205644,82667.0,82663.0,0.07512784]
[1742168182336,0.012096,82668.0,82664.0,0.193554]
[1742168182952,0.205642,82668.0,82663.0,0.09422484]
[1742168183310,0.205642,82668.0,82663.0,0.08722484]
[1742168183553,0.205642,82668.0,82664.0,0.007]
[1742168183754,0.193549,82666.0,82665.0,0.03601393]
[1742168183967,0.193549,82666.0,82664.0,0.004]
[1742168183968,0.205645,82666.0,82664.0,0.004]
[1742168184169,0.012097,82665.0,82664.0,0.004]
[1742168184530,0.012096,82667.0,82664.0,0.004]
[1742168184734,0.205642,82668.0,82664.0,0.004]
[1742168185098,0.205642,82668.0,82663.0,0.003]
[1742168185295,0.0001693,82669.0,82666.0,0.193549]
[1742168187150,0.0001693,82669.0,82666.0,0.199549]
[1742168187538,0.0001693,82669.0,82668.0,0.093696]
[1742168187741,0.193493,82691.0,82668.0,0.093696]
[1742168187742,0.012091,82702.0,82691.0,0.012093]
[1742168187956,0.15456034,82701.0,82688.0,0.1314]
[1742168188200,0.01136826,82695.0,82690.0,0.205585]
[1742168188407,0.012092,82694.0,82688.0,0.1314]
[1742168188607,0.193498,82689.0,82686.0,0.13776]
[1742168188982,0.012093,82690.0,82685.0,0.012094]
[1742168189198,0.012092,82694.0,82689.0,0.205587]
[1742168189402,0.00012322,82694.0,82693.0,0.193486]
[1742168189562,0.00012322,82694.0,82693.0,0.2359119]
[1742168190102,0.00012322,82694.0,82693.0,0.0424259]
[1742168192124,0.00012322,82694.0,82689.0,0.207587]
[1742168192305,0.00012322,82694.0,82693.0,0.001]
[1742168192705,0.00012322,82694.0,82693.0,0.003]
[1742168194203,0.01221522,82694.0,82693.0,0.003]
[1742168195273,0.01238452,82694.0,82693.0,0.003]
[1742168199436,0.31238452,82694.0,82693.0,0.003]
[1742168199904,0.45014452,82694.0,82693.0,0.003]
[1742168201054,0.45014452,82694.0,82693.0,0.001]
[1742168201256,0.45314452,82694.0,82693.0,0.001]
[1742168201677,0.012093,82689.0,82688.0,0.0003386]
[1742168201866,0.20710102,82689.0,82688.0,0.0003386]
[1742168202062,0.50710102,82689.0,82688.0,0.0003386]
[1742168202264,0.505589,82689.0,82688.0,0.0003386]
[1742168202725,0.9211874,82689.0,82688.0,0.0003386]
[1742168202925,0.9221874,82689.0,82688.0,0.0003386]
[1742168204033,0.9241874,82689.0,82688.0,0.0003386]
[1742168207309,0.4185984,82689.0,82688.0,0.0003386]
[1742168207548,0.4306914,82689.0,82688.0,0.00829246]
[1742168208174,0.4296914,82689.0,82688.0,0.00829246]
[1742168208575,0.4286914,82689.0,82688.0,0.00829246]
[1742168208785,0.013093,82689.0,82688.0,0.00829246]
[1742168209014,0.014093,82689.0,82688.0,0.00829246]
[1742168209259,0.014093,82689.0,82688.0,0.01029246]
[1742168209783,0.014093,82689.0,82688.0,0.01229246]
[1742168212410,0.014093,82689.0,82688.0,0.0043386]
[1742168218297,0.012093,82689.0,82688.0,0.0023386]
[1742168218488,0.012093,82689.0,82688.0,0.0003386]
[1742168218723,0.012093,82689.0,82688.0,0.0043386]
[1742168219266,0.0122623,82689.0,82688.0,0.0043386]
[1742168220131,0.01377422,82689.0,82688.0,0.0043386]
[1742168220332,0.42937262,82689.0,82688.0,0.0043386]
[1742168220551,0.7278607,82689.0,82688.0,0.0043386]
[1742168220760,0.7278607,82689.0,82688.0,0.0023386]
[1742168221153,0.7278607,82689.0,82688.0,0.0043386]
[1742168221362,0.7278607,82689.0,82688.0,0.0023386]
[1742168221609,0.7278607,82689.0,82688.0,0.0003386]
[1742168222037,0.7288607,82689.0,82688.0,0.0003386]
[1742168222617,0.7308607,82689.0,82688.0,0.0003386]
[1742168223243,0.7298607,82689.0,82688.0,0.0003386]
[1742168223606,0.7318607,82689.0,82688.0,0.0003386]
[1742168225844,0.7197677,82689.0,82688.0,0.0003386]
[1742168226052,0.4197677,82689.0,82688.0,0.0003386]
[1742168226260,0.0021693,82689.0,82688.0,0.0773386]
[1742168226468,0.0122623,82689.0,82688.0,0.09212126]
[1742168226684,0.0152623,82689.0,82688.0,0.09212126]
[1742168227209,0.0142623,82689.0,82688.0,0.09212126]
[1742168227459,0.0142623,82689.0,82688.0,0.09312126]
[1742168227886,0.0122623,82689.0,82688.0,0.09312126]
[1742168233487,0.0122623,82689.0,82688.0,0.14312126]
[1742168239115,0.0122623,82689.0,82688.0,0.0513386]
[1742168241422,0.0001693,82689.0,82688.0,0.3827296]
[1742168242631,0.0001693,82689.0,82688.0,0.3817296]
[1742168242830,0.0001693,82689.0,82688.0,0.3867296]
[1742168243276,0.0001693,82689.0,82688.0,0.40727045]
[1742168243483,0.0001693,82689.0,82688.0,0.51230463]
[1742168243705,0.0001693,82689.0,82688.0,0.50630463]
[1742168244095,0.0001693,82689.0,82688.0,0.50730463]
[1742168246098,0.0001693,82689.0,82688.0,0.51330463]
[1742168246308,0.0001693,82689.0,82688.0,0.52222758]
[1742168248113,3e-07,82689.0,82688.0,0.94846843]
[1742168248456,0.193408,82727.0,82722.0,0.0758]
[1742168248457,0.012087,82727.0,82722.0,0.0758]
[1742168248661,0.3,82725.0,82722.0,0.0758]
[1742168249082,0.012088,82723.0,82722.0,0.0758]
[1742168249282,0.012088,82723.0,82716.0,0.150929]
[1742168249283,0.012089,82717.0,82716.0,0.13884]
[1742168249604,0.205519,82717.0,82716.0,0.13884]
[1742168249810,0.01209,82710.0,82709.0,0.0758]
[1742168250048,0.01209,82710.0,82706.0,0.13884]
[1742168250049,0.205544,82707.0,82706.0,0.13884]
[1742168251265,0.3,82718.0,82710.0,0.193446]
[1742168251425,0.205521,82716.0,82710.0,0.205535]
[1742168251619,0.193437,82714.0,82711.0,0.0371555]
[1742168251835,0.205526,82714.0,82707.0,0.01209]
[1742168252369,0.012089,82715.0,82708.0,0.01209]
[1742168252549,0.012089,82715.0,82710.0,0.193446]
[1742168252886,0.012089,82717.0,82711.0,0.205532]
[1742168253051,0.012089,82717.0,82712.0,0.2320042]
[1742168253251,0.3,82718.0,82713.0,0.205526]
[1742168253451,0.3,82718.0,82714.0,0.205524]
[1742168253844,0.505516,82719.0,82714.0,0.205524]
[1742168254074,0.505516,82719.0,82715.0,0.04878842]
[1742168254274,0.012087,82728.0,82722.0,0.193418]
[1742168254477,0.31210947,82729.0,82725.0,0.193411]
[1742168254650,0.31210947,82729.0,82726.0,0.0193411]
[1742168254852,0.01210947,82729.0,82726.0,0.0314291]
[1742168255326,0.01210947,82729.0,82726.0,0.0193411]
[1742168255521,0.205491,82728.0,82726.0,0.0193411]
[1742168255706,0.01215168,82727.0,82726.0,0.0193411]
[1742168256294,6.468e-05,82727.0,82726.0,0.0193411]
[1742168256756,0.01215168,82727.0,82726.0,0.0193411]
[1742168257055,0.01215168,82727.0,82726.0,0.0203411]
[1742168257208,6.468e-05,82727.0,82726.0,0.0203411]
[1742168257414,6.468e-05,82727.0,82726.0,0.0324291]
[1742168259341,6.468e-05,82727.0,82726.0,0.03363785]
[1742168259543,6.468e-05,82727.0,82726.0,0.11663773]
[1742168259926,6.468e-05,82727.0,82726.0,0.17987858]
[1742168260154,8.8e-07,82731.0,82730.0,0.205487]
[1742168260355,8.8e-07,82731.0,82730.0,0.41266359]
[1742168260592,8.8e-07,82731.0,82730.0,0.4114553]
[1742168261933,8.8e-07,82731.0,82730.0,0.4174553]
[1742168262566,8.8e-07,82731.0,82730.0,0.4234553]
[1742168263774,8.8e-07,82731.0,82730.0,0.4114553]
[1742168263974,8.8e-07,82731.0,82730.0,0.4174553]
[1742168264279,8.8e-07,82731.0,82730.0,0.42659445]
[1742168264682,8.8e-07,82731.0,82730.0,0.43259445]
[1742168265304,8.8e-07,82731.0,82730.0,0.45107702]
[1742168265504,8.8e-07,82731.0,82730.0,0.45707702]
[1742168266154,8.8e-07,82731.0,82730.0,0.45107702]
[1742168266283,8.8e-07,82731.0,82730.0,0.59535702]
[1742168268605,8.8e-07,82731.0,82730.0,1.01993205]
[1742168270208,8.8e-07,82731.0,82730.0,1.43163205]
[1742168270675,8.8e-07,82731.0,82730.0,2.19919205]
[1742168271687,8.8e-07,82731.0,82730.0,2.19419205]
[1742168271984,8.8e-07,82731.0,82730.0,2.19919205]
[1742168273026,8.8e-07,82731.0,82730.0,2.19419205]
[1742168273223,8.8e-07,82731.0,82730.0,2.07461702]
[1742168273428,8.8e-07,82731.0,82730.0,1.8973136]
[1742168273627,8.8e-07,82731.0,82730.0,2.0352336]
[1742168274308,8.8e-07,82731.0,82730.0,2.0232336]
[1742168274875,8.8e-07,82731.0,82730.0,2.0292336]
[1742168275598,8.8e-07,82731.0,82730.0,0.8237536]
[1742168275796,8.8e-07,82731.0,82730.0,0.07781445]
[1742168275997,8.8e-07,82731.0,82730.0,0.20360745]
[1742168276311,0.00121338,82731.0,82730.0,0.22169445]
[1742168276532,8.8e-07,82731.0,82730.0,0.22169445]
[1742168276703,0.00121338,82731.0,82730.0,0.20960745]
[1742168276903,8.8e-07,82731.0,82730.0,0.155967]
[1742168277105,0.00121338,82731.0,82730.0,0.161967]
[1742168277311,8.8e-07,82731.0,82730.0,0.024087]
[1742168277517,0.00121338,82731.0,82730.0,0.13788]
[1742168277720,8.8e-07,82731.0,82730.0,0.17536011]
[1742168277919,0.00121338,82731.0,82730.0,0.18736011]
[1742168278174,0.00121338,82731.0,82730.0,0.19944711]
[1742168278374,0.00121338,82731.0,82730.0,0.32854711]
[1742168278573,8.8e-07,82731.0,82730.0,0.32854711]
[1742168278800,8.8e-07,82731.0,82730.0,0.32254711]
[1742168278980,8.8e-07,82731.0,82730.0,0.32754711]
[1742168279193,8.8e-07,82731.0,82730.0,0.34208796]
[1742168279491,8.8e-07,82731.0,82730.0,0.33108796]
[1742168279897,8.8e-07,82731.0,82730.0,0.36159948]
[1742168280646,8.8e-07,82731.0,82730.0,0.36759948]
[1742168280846,8.8e-07,82731.0,82730.0,0.33761811]
[1742168282069,8.8e-07,82731.0,82730.0,0.33161811]
[1742168283078,8.8e-07,82731.0,82730.0,0.32561811]
[1742168283506,8.8e-07,82731.0,82730.0,0.33161811]
[1742168284333,8.8e-07,82731.0,82730.0,0.33761811]
[1742168286011,8.8e-07,82731.0,82730.0,0.34013811]
[1742168289293,8.8e-07,82731.0,82730.0,0.07315811]
[1742168289541,8.8e-07,82731.0,82730.0,0.05200011]
[1742168289740,0.00121384,82731.0,82730.0,0.20172711]
[1742168290299,0.00121384,82731.0,82730.0,0.38304011]
[1742168290502,0.00121384,82731.0,82730.0,0.38912711]
[1742168290747,0.00121384,82731.0,82730.0,0.18364011]
[1742168291331,0.01330084,82731.0,82730.0,0.01352]
[1742168291711,0.01330084,82731.0,82730.0,0.00852]
[1742168292139,0.01330084,82731.0,82730.0,0.01352]
[1742168292337,0.01330084,82731.0,82730.0,0.00252]
[1742168292858,0.01330084,82731.0,82730.0,0.01152]
[1742168293053,0.00121384,82731.0,82730.0,0.04895381]
[1742168293293,0.00121384,82731.0,82730.0,0.04295381]
[1742168293500,0.00121384,82731.0,82730.0,0.04795381]
[1742168299090,0.01330084,82731.0,82730.0,0.04795381]
[1742168299295,0.00121384,82731.0,82730.0,0.04795381]
[1742168301583,8.4e-07,82731.0,82730.0,0.47419466]
[1742168301796,0.0001693,82747.0,82746.0,0.205447]
[1742168302053,0.0001693,82747.0,82746.0,0.34501534]
[1742168302170,0.0001693,82747.0,82746.0,0.420607]
[1742168303005,0.0001693,82747.0,82746.0,0.423607]
[1742168303420,0.0001693,82747.0,82746.0,0.424607]
[1742168303626,0.0001693,82747.0,82746.0,0.5274956]
[1742168304211,0.0001693,82747.0,82746.0,0.53987915]
[1742168304729,0.0001693,82747.0,82746.0,0.54187915]
[1742168304929,0.0001693,82747.0,82746.0,0.54787915]
[1742168305363,0.0001693,82747.0,82746.0,0.54187915]
[1742168305719,0.0001693,82747.0,82746.0,0.54787915]
[1742168307742,0.0001693,82747.0,82746.0,0.53587915]
[1742168307962,0.0001693,82747.0,82746.0,0.54787915]
[1742168308372,0.0001693,82747.0,82746.0,0.54187915]
[1742168308611,0.0001693,82747.0,82746.0,0.54087915]
[1742168308804,0.0001693,82747.0,82746.0,0.54687915]
[1742168309430,0.0001693,82747.0,82746.0,0.54087915]
[1742168309794,0.0001693,82747.0,82746.0,0.4512956]
[1742168310185,0.0001693,82747.0,82746.0,0.14292]
[1742168310419,0.01243196,82747.0,82746.0,0.005]
[1742168310634,0.0001693,82747.0,82746.0,0.005]
[1742168310865,0.0001693,82747.0,82744.0,0.13792]
[1742168311267,0.0001693,82747.0,82746.0,0.006]
[1742168311429,0.0001693,82747.0,82746.0,0.0614831]
[1742168311991,0.0001693,82747.0,82746.0,0.0584831]
[1742168313206,0.0001693,82747.0,82746.0,0.0624831]
[1742168313628,0.0001693,82747.0,82746.0,0.0745681]
[1742168314718,0.0001693,82747.0,82746.0,0.0675681]
[1742168314942,0.0001693,82747.0,82746.0,0.0765681]
[1742168317077,0.0001693,82747.0,82746.0,0.1562681]
[1742168317281,0.0001693,82747.0,82746.0,0.22191735]
[1742168318309,0.0001693,82747.0,82746.0,0.21791735]
[1742168318519,0.0001693,82747.0,82746.0,0.21891735]
[1742168319347,0.0001693,82747.0,82746.0,0.22291735]
[1742168319716,0.0001693,82747.0,82746.0,0.21891735]
[1742168320313,0.0001693,82747.0,82746.0,0.22491735]
[1742168321250,0.0001693,82747.0,82746.0,0.34449238]
[1742168321454,0.0001693,82747.0,82746.0,0.34328398]
[1742168325532,0.0001693,82754.0,82753.0,0.50543]
[1742168325533,2e-07,82754.0,82753.0,0.50543]
[1742168325871,4.3e-07,82754.0,82753.0,0.71924588]
[1742168327780,4.3e-07,82754.0,82753.0,0.72524588]
[1742168327992,4.3e-07,82754.0,82753.0,0.60567085]
[1742168328185,4.3e-07,82754.0,82753.0,0.59967085]
[1742168328414,4.3e-07,82754.0,82753.0,0.64810466]
[1742168328590,4.3e-07,82754.0,82753.0,0.64310466]
[1742168328785,4.3e-07,82754.0,82753.0,1.05480466]
[1742168329194,4.3e-07,82754.0,82753.0,1.19240466]
[1742168329590,4.3e-07,82754.0,82753.0,1.19840466]
[1742168330176,4.3e-07,82754.0,82753.0,1.37067969]
[1742168331175,4.3e-07,82754.0,82753.0,1.35967969]
[1742168331680,4.3e-07,82754.0,82753.0,1.35367969]
[1742168332084,4.3e-07,82754.0,82753.0,1.35967969]
[1742168332301,4.3e-07,82754.0,82753.0,1.36567969]
[1742168332475,4.3e-07,82754.0,82753.0,1.35967969]
[1742168332940,4.3e-07,82754.0,82753.0,1.37492418]
[1742168333122,4.3e-07,82754.0,82753.0,2.14216418]
[1742168333478,4.3e-07,82754.0,82753.0,2.13616418]
[1742168333705,4.3e-07,82754.0,82753.0,2.14216418]
[1742168335441,4.3e-07,82754.0,82753.0,2.02258915]
[1742168335655,4.3e-07,82754.0,82753.0,0.21743]
[1742168336690,4.3e-07,82754.0,82753.0,0.21143]
[1742168337138,4.3e-07,82754.0,82753.0,0.1496]
[1742168337454,0.00118126,82754.0,82753.0,0.149938]
[1742168337685,0.01225343,82754.0,82753.0,0.012338]
[1742168337856,0.00133743,82754.0,82753.0,0.03776292]
[1742168338215,0.00133743,82754.0,82753.0,0.03176292]
[1742168338671,0.00133743,82754.0,82753.0,0.03776292]
[1742168339661,0.01342143,82754.0,82753.0,0.012338]
[1742168340067,0.09042143,82754.0,82753.0,0.012338]
[1742168340981,0.09042143,82754.0,82753.0,0.006338]
[1742168341184,0.09042143,82754.0,82753.0,0.008338]
[1742168341316,0.09042143,82754.0,82753.0,0.002338]
[1742168341521,0.09042143,82754.0,82753.0,0.003338]
[1742168343275,0.09042143,82754.0,82753.0,0.001338]
[1742168343674,0.09042143,82754.0,82753.0,0.003338]
[1742168347838,0.08925343,82754.0,82753.0,0.003338]
[1742168357033,0.01225343,82754.0,82753.0,0.003338]
[1742168359165,0.01338948,82754.0,82753.0,0.003338]
[1742168365557,0.01338948,82754.0,82753.0,0.208768]
[1742168365558,0.00130548,82754.0,82753.0,0.208768]
[1742168365757,0.00130548,82754.0,82753.0,0.2592065]
[1742168365758,0.00016943,82754.0,82753.0,0.2592065]
[1742168366376,0.00016943,82754.0,82753.0,0.2582065]
[1742168366538,0.00016943,82754.0,82753.0,0.2562065]
[1742168366742,0.00016943,82754.0,82753.0,0.2632065]
[1742168368550,0.00016943,82754.0,82753.0,0.3869065]
[1742168369477,0.00016943,82754.0,82753.0,0.3839065]
[1742168369681,0.00016943,82754.0,82753.0,0.40357657]
[1742168369922,0.00016943,82754.0,82753.0,0.40957657]
[1742168370241,0.00016943,82754.0,82753.0,0.41557657]
[1742168370577,0.00016943,82754.0,82753.0,0.40957657]
[1742168371132,0.00016943,82754.0,82753.0,0.41557657]
[1742168371334,0.00016943,82754.0,82753.0,0.40957657]
[1742168371686,0.00016943,82754.0,82753.0,0.44030156]
[1742168372442,0.00016943,82754.0,82753.0,0.43430156]
[1742168372645,0.00016943,82754.0,82753.0,0.84600156]
[1742168372989,0.00016943,82754.0,82753.0,0.85200156]
[1742168375793,0.00016943,82754.0,82753.0,0.5295065]
[1742168376585,0.00016943,82754.0,82753.0,0.3919065]
[1742168376827,0.00016943,82754.0,82753.0,0.5235065]
[1742168377244,0.00016943,82754.0,82753.0,0.3859065]
[1742168377455,0.00016943,82754.0,82753.0,0.5235065]
[1742168377585,0.00016943,82754.0,82753.0,0.5295065]
[1742168380154,0.00016943,82754.0,82753.0,0.3919065]
[1742168380361,0.01225343,82754.0,82753.0,0.149938]
[1742168380561,0.01225343,82754.0,82753.0,0.012338]
[1742168380883,0.02404187,82754.0,82753.0,0.012338]
[1742168381291,0.02404187,82754.0,82753.0,0.006338]
[1742168381691,0.02404187,82754.0,82753.0,0.012338]
[1742168381894,0.02404187,82754.0,82753.0,0.006338]
[1742168383486,0.02404187,82754.0,82753.0,0.004338]
[1742168383682,0.02404187,82754.0,82753.0,0.000338]
[1742168383882,0.02404187,82754.0,82753.0,0.003338]
[1742168384317,0.02404187,82754.0,82753.0,0.000338]
[1742168384521,0.02404187,82754.0,82753.0,0.001338]
[1742168389519,0.40665261,82754.0,82753.0,0.001338]
[1742168389715,0.82074027,82754.0,82753.0,1e-06]
[1742168390446,0.012087,82732.0,82730.0,0.14012]
[1742168390620,0.205482,82732.0,82730.0,0.14012]
[1742168391222,0.21769656,82732.0,82730.0,0.00252]
[1742168392047,0.205482,82732.0,82730.0,0.00252]
[1742168392817,0.21779691,82732.0,82730.0,0.00252]
[1742168393017,0.21779691,82732.0,82731.0,0.004338]
[1742168393333,0.21930787,82732.0,82731.0,0.007338]
[1742168393537,0.21779691,82732.0,82731.0,0.007338]
[1742168393736,0.21930799,82732.0,82731.0,0.007338]
[1742168394137,0.51930799,82732.0,82731.0,0.007338]
[1742168394316,0.51779691,82732.0,82731.0,0.003338]
[1742168394522,0.51779691,82732.0,82731.0,0.000338]
[1742168394822,0.51779691,82732.0,82731.0,0.003338]
[1742168395041,0.51779691,82732.0,82731.0,0.002338]
[1742168395902,0.51779691,82732.0,82731.0,0.000338]
[1742168396319,0.61343776,82732.0,82731.0,0.002338]
[1742168396727,0.61343776,82732.0,82731.0,0.001338]
[1742168397061,0.61343776,82732.0,82731.0,0.000338]
[1742168398120,0.312087,82731.0,82730.0,1e-06]
[1742168398743,0.32662785,82731.0,82730.0,1e-06]
[1742168399112,0.205491,82728.0,82727.0,1e-06]
[1742168399334,0.68304173,82728.0,82727.0,1e-06]
[1742168399684,0.68153025,82728.0,82727.0,1e-06]
[1742168400444,0.68153025,82728.0,82727.0,0.0004118]
[1742168400646,0.205571,82696.0,82694.0,0.1379782]
[1742168400972,0.012092,82695.0,82694.0,0.0003382]
[1742168401944,0.01213308,82695.0,82694.0,0.0003382]
[1742168402144,0.01213308,82695.0,82694.0,0.0053382]
[1742168402540,0.01213308,82695.0,82694.0,0.0113382]
[1742168402745,0.01213308,82695.0,82694.0,0.03041588]
[1742168403515,0.02450388,82695.0,82694.0,0.0063382]
[1742168403703,0.02450388,82695.0,82694.0,0.0013382]
[1742168403912,0.01213308,82695.0,82694.0,0.0013382]
[1742168404092,0.01213308,82695.0,82694.0,0.0033382]
[1742168405377,0.02448694,82695.0,82694.0,0.0033382]
[1742168406205,0.02599877,82695.0,82694.0,0.0033382]
[1742168406410,0.02448694,82695.0,82694.0,0.0033382]
[1742168407793,0.74008534,82695.0,82694.0,0.0033382]
[1742168409313,0.74008534,82695.0,82694.0,0.0013382]
[1742168409498,0.74008534,82695.0,82694.0,0.0023382]
[1742168409700,0.74008534,82695.0,82694.0,0.0013382]
[1742168409995,0.74008534,82695.0,82694.0,0.0003382]
[1742168410667,0.74108534,82695.0,82694.0,0.0003382]
[1742168411062,0.75562619,82695.0,82694.0,0.0003382]
[1742168411837,0.75562619,82695.0,82694.0,2e-07]
[1742168411973,0.76062619,82695.0,82694.0,2e-07]
[1742168412712,0.76162619,82695.0,82694.0,2e-07]
[1742168412867,0.76062619,82695.0,82694.0,2e-07]
[1742168413057,0.76162619,82695.0,82694.0,2e-07]
[1742168413775,0.76462619,82695.0,82694.0,2e-07]
[1742168415467,0.205634,82671.0,82670.0,0.000338]
[1742168415645,0.20714621,82671.0,82670.0,0.000338]
[1742168415848,0.50714621,82671.0,82670.0,0.000338]
[1742168416076,0.505634,82671.0,82670.0,0.000338]
[1742168416667,0.4276934,82676.0,82670.0,0.000338]
[1742168416866,0.4155984,82676.0,82675.0,0.205623]
[1742168417236,0.205628,82673.0,82672.0,0.0488]
[1742168419205,0.205628,82673.0,82672.0,0.0508]
[1742168419611,0.205628,82673.0,82672.0,0.0488]
[1742168419810,0.205628,82673.0,82672.0,0.0518]
[1742168420145,0.205628,82673.0,82672.0,0.0521382]
[1742168420328,0.205628,82673.0,82672.0,0.0541382]
[1742168420743,0.205628,82673.0,82672.0,0.0053382]
[1742168422464,0.209028,82673.0,82672.0,0.0053382]
[1742168422872,0.0034,82673.0,82672.0,0.03856522]
[1742168423080,0.0034,82673.0,82672.0,0.16326522]
[1742168425674,0.0034,82673.0,82672.0,0.15117022]
[1742168425972,0.015495,82673.0,82672.0,0.15117022]
[1742168426393,0.015495,82673.0,82672.0,0.1300382]
[1742168427036,0.0034,82673.0,82672.0,0.1300382]
[1742168431473,0.0034,82673.0,82672.0,0.1421332]
[1742168431666,0.0034,82673.0,82672.0,0.1401332]
[1742168431903,0.0034,82673.0,82672.0,0.1391332]
[1742168432122,0.0034,82673.0,82672.0,0.21798082]
[1742168432538,0.0034,82673.0,82672.0,0.21598082]
[1742168433121,0.0034,82673.0,82672.0,0.21998082]
[1742168434118,0.0034,82673.0,82672.0,0.21798082]
[1742168434414,0.0034,82673.0,82672.0,0.22198082]
[1742168435766,0.0034,82673.0,82672.0,0.24445231]
[1742168439510,0.0034,82673.0,82672.0,0.38213231]
[1742168439665,0.0034,82673.0,82672.0,0.35966082]
[1742168440885,0.0034,82673.0,82672.0,0.35566082]
[1742168441092,0.0034,82673.0,82672.0,0.35166082]
[1742168441288,0.0034,82673.0,82672.0,0.36366082]
[1742168441494,0.0034,82673.0,82672.0,0.35766082]
[1742168442220,0.0034,82673.0,82672.0,0.36366082]
[1742168442798,0.0034,82673.0,82672.0,0.42205593]
[1742168442997,0.0034,82673.0,82672.0,0.72205593]
[1742168443783,1e-06,82673.0,82672.0,1.14829678]
[1742168446262,1e-06,82673.0,82672.0,1.11235062]
[1742168448204,1e-06,82673.0,82672.0,0.97467062]
[1742168448410,1e-06,82673.0,82672.0,0.96012977]
[1742168448566,1e-06,82673.0,82672.0,1.09780977]
[1742168449154,1e-06,82673.0,82672.0,1.07536082]
[1742168449364,1e-06,82673.0,82672.0,0.93768082]
[1742168449563,1e-06,82673.0,82672.0,1.07536082]
[1742168453164,1e-06,82673.0,82672.0,1.08990167]
[1742168453955,1e-06,82673.0,82672.0,1.85790167]
[1742168454179,1e-06,82673.0,82672.0,1.88035062]
[1742168458110,1e-06,82673.0,82672.0,1.89156099]
[1742168460680,1e-06,82673.0,82672.0,1.92743408]
[1742168461322,1e-06,82673.0,82672.0,2.04700911]
[1742168461461,1e-06,82673.0,82672.0,2.05200911]
[1742168461674,0.0001691,82688.0,82687.0,0.633693]
[1742168461675,1e-07,82688.0,82687.0,0.633693]
[1742168461874,1e-07,82688.0,82687.0,1.26094315]
[1742168462707,1e-07,82688.0,82687.0,1.2464023]
[1742168462912,1e-07,82688.0,82687.0,1.2524023]
[1742168463585,1e-07,82688.0,82687.0,2.0203623]
[1742168464376,1e-07,82688.0,82687.0,2.0143623]
[1742168464574,1e-07,82688.0,82687.0,2.0253623]
[1742168465096,1e-07,82688.0,82687.0,0.4176023]
[1742168465301,1e-07,82688.0,82687.0,0.14864]
[1742168465538,1e-07,82688.0,82687.0,0.155733]
[1742168466971,1e-07,82688.0,82687.0,0.161733]
[1742168467393,1e-07,82688.0,82687.0,0.155733]
[1742168468267,1e-07,82688.0,82687.0,0.161733]
[1742168468490,1e-07,82688.0,82687.0,0.28130803]
[1742168474659,1e-07,82688.0,82687.0,0.40940803]
[1742168475567,1e-07,82688.0,82687.0,0.43186889]
[1742168476289,1e-07,82688.0,82687.0,0.42586889]
[1742168476806,1e-07,82688.0,82687.0,0.43220709]
[1742168477561,1e-07,82688.0,82687.0,0.42620709]
[1742168477766,1e-07,82688.0,82687.0,0.43220709]
[1742168480904,1e-07,82688.0,82687.0,0.40974623]
[1742168482467,1e-07,82688.0,82687.0,0.40970623]
[1742168482916,1e-07,82688.0,82687.0,0.43216709]
[1742168484144,1e-07,82688.0,82687.0,0.40970623]
[1742168485299,1e-07,82688.0,82687.0,0.36000623]